Cogmind - Beta 11.1 @@@ ROGUE MODE // 2022.06.10 @ 22:53:31 Player: ChromeKnight Result: Destroyed by S-27 Virus with Autogun Performance ------------- Evolutions (3) 1500 Regions Visited (11) 2200 Robots Destroyed (176) 880 Value Destroyed (6221) 6221 Prototype IDs (6) 120 Alien Tech Used (0) 0 Bonus (4338) 4338 TOTAL SCORE: 15259 Bonus ------- High Alert Combat Kills 480 Follower Combat Kills 1843 Entered Garrisons 800 Used RIF Installer 1500 Friendly Fire -285 Cogmind --------- Core Integrity 0/700 Matter 278/300 Energy 37/100 System Corruption 2% Temperature Cool (0) Movement Flying (32) Location -7/Garrison Parts ------- > --- POWER (1) -------- (None) > --- PROPULSION (2) --- VTOL Module VTOL Module > --- UTILITY (8) ------ Hacking Suite Hacking Suite Relay Coupler [Swarmer] (39) Relay Coupler [Duelist] (28) Relay Coupler [Sentry] (11) Relay Coupler [Hunter] (21) > --- WEAPON (2) ------- Arc Projector Autogun > --- INVENTORY (5) ---- Relay Coupler [NC] (34) Relay Coupler [Brawler] (33) Relay Coupler [Sentry] (29) Relay Coupler [Heavy] (18) Peak State ------------ > --- POWER ------------ Micro Nuclear Core > --- PROPULSION ------- Improved Cesium-ion Thruster Improved Cesium-ion Thruster > --- UTILITY ---------- Improved Sensor Array Improved Signal Interpreter Hacking Suite System Shield Relay Coupler [Swarmer] Relay Coupler [Duelist] Relay Coupler [Sentry] Relay Coupler [Hunter] > --- WEAPON ----------- Improved Datajack Great Axe > --- INVENTORY -------- Xenon Bombardment Thruster Xenon Bombardment Thruster Relay Coupler [Brawler] Relay Coupler [Heavy] Relay Coupler [Behemoth] [Rating: 50] Favorites ----------- Power Light Nuclear Core Engine Reinforced Ion Engine Power Core Light Nuclear Core Propulsion Medium Treads Treads Medium Treads Wheel Armored Huge Wheel Hover Unit Airjet Flight Unit Xenon Bombardment Thruster Utility Hacking Suite Device Improved Heat Sink Storage Large Storage Unit Processor Advanced Targeting Computer Hackware Hacking Suite Protection Hardened Medium Armor Plating Weapon Enhanced Autogun Energy Gun Lightning Gun Energy Cannon Advanced Beam Cannon Ballistic Gun Enhanced Autogun Ballistic Cannon Improved Light Cannon Launcher Grenade Launcher Impact Weapon Heavy Flail Slashing Weapon Great Axe Special Melee Weapon Improved Datajack Build | -11 -10 -10 -9 -9 -9 -8 -8 -8 -8 -7 -7 ------- Run | Scr Mat Min Mat Sto Gar Mat Gar Mat Gar Fac Gar Slots Evolved 6 | . . . 2 . . 2 . . . 2 . Power . | . . . . . . . . . . . . Propulsion . | . . . . . . . . . . . . Utility 6 | . . . 2 . . 2 . . . 2 . Weapon . | . . . . . . . . . . . . Parts Attached 185 | 7 5 4 22 1 6 35 16 30 19 22 18 Power 14 | 1 . 2 3 . 1 1 . 1 . 3 2 Engine 6 | 1 . 1 2 . 1 1 . . . . . Core 8 | . . 1 1 . . . . 1 . 3 2 Reactor . | . . . . . . . . . . . . Propulsion 43 | 2 1 . 5 . 3 12 2 . 3 6 9 Treads 20 | 2 1 . 5 . 3 7 2 . . . . Leg . | . . . . . . . . . . . . Wheel 3 | . . . . . . 2 . . 1 . . Hover 3 | . . . . . . 3 . . . . . Flight 17 | . . . . . . . . . 2 6 9 Utility 63 | 2 3 1 6 . 1 10 5 9 11 12 3 Device 6 | 1 . . . . . . . 1 3 1 . Storage 5 | 1 2 1 . . . 1 . . . . . Processor 6 | . 1 . 2 . . 2 . . 1 . . Hackware 31 | . . . . . . 3 3 6 5 11 3 Protection 15 | . . . 4 . 1 4 2 2 2 . . Artifact . | . . . . . . . . . . . . Weapon 65 | 2 1 1 8 1 1 12 9 20 5 1 4 Energy Gun 11 | 1 . . . . . . 3 4 2 . 1 Energy Cannon 1 | . . . . . . 1 . . . . . Ballistic Gun 24 | 1 1 1 5 1 . 4 2 8 . . 1 Ballistic Cannon 2 | . . . 1 . . 1 . . . . . Launcher 1 | . . . 1 . . . . . . . . Special Weapon . | . . . . . . . . . . . . Impact Weapon 4 | . . . 1 . 1 2 . . . . . Slashing Weapon 3 | . . . . . . . . . . 1 2 Piercing Weapon . | . . . . . . . . . . . . Special Melee Weapon 19 | . . . . . . 4 4 8 3 . . Unidentified Prototypes 4 | . . . . . . 2 . 1 . 1 . Parts Lost 32 | . 1 . 5 . 3 3 2 1 3 3 11 Power 3 | . . . 1 . . . . 1 . . 1 Propulsion 10 | . . . 1 . 1 3 . . . . 5 Utility 12 | . 1 . 2 . 1 . 1 . 1 3 3 Weapon 7 | . . . 1 . 1 . 1 . 2 . 2 Highest Loss Streak 4 | . 1 . 4 . 2 1 1 1 2 1 3 To Critical Strikes 1 | . . . . . . . . 1 . . . Average Slot Usage (%) 96 | . 98 100 99 100 99 96 98 97 89 93 86 Engine 4 | . 14 3 2 11 11 8 9 2 . . . Core 4 | . . 10 8 . . . . 5 9 7 5 Treads 13 | . 28 28 22 22 21 14 18 18 1 . . Flight 3 | . . . . . . . . . 1 15 13 Device 2 | . 4 . . . . . . 4 8 4 . Storage 7 | . 14 14 11 11 11 9 9 9 8 . . Processor 9 | . 7 14 11 11 11 12 10 9 4 7 6 Hackware 21 | . . . . . . 17 24 20 23 43 48 Protection 8 | . . . 20 22 22 12 8 9 7 . . Energy Gun 3 | . 5 . . . . . 4 8 10 2 1 Ballistic Gun 8 | . 22 28 12 22 19 12 12 8 . . . Ballistic Cannon 1 | . . . 8 . . 1 . . . . . Special Melee Weapon 2 | . . . . . . 1 . 1 6 7 . Naked Turns . | . . . . . . . . . . . . Heaviest Build 54 | 11 26 28 44 41 44 54 44 44 42 12 11 Greatest Support 56 | 40 40 40 43 43 43 56 56 56 56 12 12 Greatest Overweight (x) 16 | . . . 1 . 2 16 . . 5 . 3 Average Overweight (x) . | . . . . . . . . . . . . Largest Inventory Capacity 15 | 8 15 15 15 15 15 15 15 15 15 5 5 Average Capacity 12 | 7 14 15 15 15 15 15 15 15 14 5 5 Most Carried 15 | 1 15 15 15 13 15 15 15 15 15 5 5 Average Carried 11 | . 11 14 13 13 13 14 14 14 10 4 4 Final Capacity 15 | 8 15 15 15 15 15 15 15 15 5 5 5 Final Carried 15 | 1 15 15 13 13 15 15 15 14 5 2 4 Class Distribution -------------------- 47% | Bothacker-Mutant 22% | Commander-Mutant 18% | Mutant 7% | Bothacker-Sprinter Dominant Class ---------------- Mutant | -10/Materials Mutant | -10/Mines Mutant | -9/Materials Mutant | -9/Storage Mutant | -9/Garrison Bothacker-Mutant | -8/Materials Bothacker-Mutant | -8/Garrison Commander-Mutant | -8/Materials Bothacker-Mutant | -8/Garrison Bothacker-Mutant | -7/Factory Commander-Mutant | -7/Garrison Resources | -11 -10 -10 -9 -9 -9 -8 -8 -8 -8 -7 -7 ----------- Run | Scr Mat Min Mat Sto Gar Mat Gar Mat Gar Fac Gar Matter Collected 4077 | 193 283 116 562 . 173 1123 467 547 94 334 185 Remotely . | . . . . . . . . . . . . Salvage Created 5906 | 38 407 261 824 . 357 1566 682 1031 293 203 244 Parts 355 | 7 25 18 67 . 16 91 34 50 20 9 18 Haulers Intercepted 8 | . 2 . 2 . . 4 . . . . . Recyclers Shooed 8 | . 5 . . . . 2 . 1 . . . Parts Field Recycled . | . . . . . . . . . . . . Retrieved Matter . | . . . . . . . . . . . . Parts Self-Destructed . | . . . . . . . . . . . . Prevented . | . . . . . . . . . . . . Kills | -11 -10 -10 -9 -9 -9 -8 -8 -8 -8 -7 -7 ------- Run | Scr Mat Min Mat Sto Gar Mat Gar Mat Gar Fac Gar Combat Hostiles Destroyed 125 | . 7 10 22 . 8 22 16 20 10 2 8 Melee 14 | . . . . . . 6 . . . 1 7 Guns 86 | . 7 10 8 . 7 8 16 20 9 1 . Cannons 14 | . . . 8 . . 6 . . . . . AOE 6 | . . . 5 . . . . . . . 1 Classes Destroyed 15 | 1 7 . 2 . 1 1 1 . 1 1 . Worker 9 | . 3 . 2 . . 4 . . . . . Builder 1 | . . . . . . 1 . . . . . Tunneler 3 | 2 . 1 . . . . . . . . . Hauler 8 | . 2 . 2 . . 4 . . . . . Recycler 12 | . 1 . . . . 8 . 2 . 1 . Operator 6 | . 1 . 1 . . 2 . 1 . . 1 Watcher 11 | . 1 . 3 . . 5 . 2 . . . Swarmer 56 | . 6 8 7 . . 14 4 7 6 1 3 Cutter 4 | . . . . . . . . . 1 . 3 Grunt 36 | . 1 2 8 . 6 1 8 9 . . 1 Brawler 1 | . . . . . 1 . . . . . . Duelist 6 | . . . 1 . . . 2 . 3 . . Sentry 21 | . . . 6 . 1 7 1 4 . 1 1 Hunter 1 | . . . . . . . 1 . . . . Programmer 1 | . . . . . . . . . . 1 . Best Kill Streak 6 | 2 5 3 6 . 4 4 6 5 3 1 3 Combat Bots Only 6 | . 4 3 6 . 4 4 6 5 3 1 3 Max Kills in Single Turn 3 | 1 2 1 3 . 2 1 1 2 1 1 1 Gunslinging 1 | . 1 . . . 1 . . 1 . . . Exploded 3 | . . . 3 . . . . . . . 1 Melee 1 | . . . . . . 1 . . . 1 1 Uniques/NPCs Destroyed . | . . . . . . . . . . . . Combat | -11 -10 -10 -9 -9 -9 -8 -8 -8 -8 -7 -7 -------- Run | Scr Mat Min Mat Sto Gar Mat Gar Mat Gar Fac Gar Damage Taken 7417 | . 229 228 1167 . 637 1418 1055 803 547 424 909 Core 1490 | . 61 44 157 . 25 137 113 104 146 186 517 Absorbed by Shields 7 | . . . . . . . 7 . . . . Regen/Repaired (Parts) 756 | . . . . . . 85 111 461 57 23 19 Core Remaining (%) 55 | 100 . 58 . . 54 . . . 9 . . Volleys Fired 451 | 8 54 19 61 . 29 106 49 71 37 8 9 Largest 2 | 2 2 2 2 . 2 2 2 2 2 1 1 Hottest 110 | 60 60 40 62 . 43 50 90 110 110 30 55 Shots Fired 834 | 16 108 38 116 . 57 192 87 142 61 8 9 Gun 768 | 16 108 38 70 . 57 172 87 142 61 8 9 Cannon 64 | . . . 44 . . 20 . . . . . Launcher 2 | . . . 2 . . . . . . . . Special . | . . . . . . . . . . . . Kinetic 673 | 8 87 38 114 . 57 192 78 96 . . 3 Thermal 55 | 8 21 . . . . . 9 8 . 8 1 Explosive 2 | . . . 2 . . . . . . . . Electromagnetic 104 | . . . . . . . . 38 61 . 5 Robot Hit Streak 17 | 10 8 6 14 . 11 14 17 14 8 1 3 Robot Miss Streak 5 | 1 4 3 4 . 2 5 3 4 4 1 3 Penetration Max . | . . . . . . . . . . . . Secondary Targets 11 | . 1 1 1 . 1 . 3 4 . . . Max Gunslinging Chain 1 | . 1 1 1 . 1 . 1 1 . . . Shots Hit Robots 645 | 13 69 21 81 . 49 152 56 106 40 34 24 Core Hits 249 | 2 28 15 38 . 12 54 27 46 14 4 9 Critical Kills 4 | . . 1 . . . 1 1 1 . . . Critical Parts Destroyed 6 | . . . . . 1 5 . . . . . Critical Strikes 15 | . . 1 . . 1 8 1 2 2 . . Burn 1 | . . . . . . . . 1 . . . Destroy 6 | . . 1 . . 1 2 1 1 . . . Blast 2 | . . . . . . 2 . . . . . Corrupt 2 | . . . . . . . . . 2 . . Smash 4 | . . . . . . 4 . . . . . Melee Attacks 182 | . . . 1 . 13 43 7 22 4 53 39 Thermal 1 | . . . . . . . . . . . 1 Impact 48 | . . . 1 . 13 34 . . . . . Slashing 53 | . . . . . . . . . . 16 37 Piercing . | . . . . . . . . . . . . Sneak Attacks 33 | . . . . . . 6 . 8 2 14 3 Combat Hostiles 1 | . . . . . . . . . . . 1 Follow-up Attacks . | . . . . . . . . . . . . Damage Inflicted 10728 | 124 695 243 1554 . 789 3143 884 1425 708 377 786 Guns 7213 | 124 695 243 667 . 461 1935 884 1416 687 50 51 Cannons 1040 | . . . 613 . . 427 . . . . . Explosions 281 | . . . 228 . . . . . 21 . 32 Melee 2184 | . . . 45 . 328 781 . . . 327 703 Ramming 10 | . . . 1 . . . . 9 . . . Kinetic 6609 | 48 563 243 1280 . 461 2362 836 802 . . 14 Thermal 433 | 76 132 . . . . . 48 66 21 50 40 Explosive 228 | . . . 228 . . . . . . . . Electromagnetic 1264 | . . . . . . . . 548 687 . 29 Impact 1154 | . . . 45 . 328 781 . . . . . Slashing 1030 | . . . . . . . . . . 327 703 Piercing . | . . . . . . . . . . . . Highest Corruption 2 | . . . . . . . . . . 2 2 Average Corruption 2 | . . . . . . . . . . 2 2 Corruption Purged . | . . . . . . . . . . . . Corruption Blocked . | . . . . . . . . . . . . Effects 35 | . . . . . . . . . . 23 12 Message Errors 11 | . . . . . . . . . . 7 4 Matter Fused 8 | . . . . . . . . . . 5 3 Heat Flow Errors 6 | . . . . . . . . . . 5 1 Energy Discharges 3 | . . . . . . . . . . 2 1 Data Loss (minor) 3 | . . . . . . . . . . 2 1 Data Loss (major) 3 | . . . . . . . . . . 2 1 Alerts 1 | . . . . . . . . . . . 1 Overload Shots . | . . . . . . . . . . . . Overflow Damage 591 | . . . 46 . 25 325 . . . 110 85 Projectiles 13 | . . . . . . 13 . . . . . Explosions 11 | . . . 11 . . . . . . . . Melee 567 | . . . 35 . 25 312 . . . 110 85 Knockbacks 6 | . . . 5 . . 1 . . . . . Impact 1 | . . . . . . 1 . . . . . Kinetic 5 | . . . 5 . . . . . . . . Secondary . | . . . . . . . . . . . . Self-Inflicted Damage 135 | . . . 57 . . . . . 34 . 44 Shots 4 | . . . 2 . . . . . 1 . 1 Rammed 2 | . . . 1 . . . . 1 . . . Targets Rammed 2 | . . . 1 . . . . 1 . . . Kicked . | . . . . . . . . . . . . Crushed . | . . . . . . . . . . . . Highest Temperature 408 | 40 72 9 408 . 305 323 234 299 85 186 146 Average Temperature 62 | 24 24 4 88 . 111 54 55 51 21 78 70 Received Heat Transfer 1644 | . 12 33 303 . 210 315 414 270 9 51 27 Effects 5 | . . . 2 . 2 . . 1 . . . Energy Bleed 1 | . . . . . 1 . . . . . . Interference 2 | . . . . . 1 . . 1 . . . Short Circuit 1 | . . . 1 . . . . . . . . Damage (minor) 1 | . . . 1 . . . . . . . . Siege Activations . | . . . . . . . . . . . . Robots Corrupted 1 | . . . . . . . . . 1 . . Combat Hostiles 1 | . . . . . . . . . 1 . . Parts Fried 16 | . . . . . 2 7 . 3 4 . . Impact Corruptions 15 | . . . 2 . 3 10 . . . . . Robots Melted . | . . . . . . . . . . . . Combat Hostiles . | . . . . . . . . . . . . Parts Melted 1 | . . . . . . . . 1 . . . Heat Transferred 1130 | 175 300 . . . . . 111 222 50 185 87 Parts Sabotaged . | . . . . . . . . . . . . Parts Stolen . | . . . . . . . . . . . . Parts Stripped . | . . . . . . . . . . . . Power Chain Reactions 2 | . . . . . . . . . 1 . 1 Missiles Intercepted . | . . . . . . . . . . . . Alert | -11 -10 -10 -9 -9 -9 -8 -8 -8 -8 -7 -7 ------- Run | Scr Mat Min Mat Sto Gar Mat Gar Mat Gar Fac Gar Peak Influence 1048 | 10 205 160 267 101 355 599 1048 792 829 479 569 Initial 510 | . 6 18 3 97 65 172 389 510 . 434 120 Average 375 | 4 83 82 98 98 242 286 812 579 630 135 358 Maximum Alert Level 3 | . 1 . 1 . 1 2 3 3 3 2 2 Low Security (%) 36 | 100 85 100 80 100 27 26 . 2 12 80 12 Level 1 18 | . 14 . 19 . 72 46 1 . . 17 44 Level 2 29 | . . . . . . 27 21 91 28 2 42 Level 3 15 | . . . . . . . 76 6 58 . . Level 4 . | . . . . . . . . . . . . Level 5 . | . . . . . . . . . . . . High Security . | . . . . . . . . . . . . Max Security . | . . . . . . . . . . . . Squads Dispatched 29 | . 1 . 5 . . 3 . 7 . 13 . Investigation 12 | . . . 4 . . 1 . 4 . 3 . Extermination 9 | . . . . . . . . . . 9 . Reinforcement 6 | . 1 . 1 . . 2 . 1 . 1 . Assault 1 | . . . . . . . . 1 . . . Garrison 1 | . . . . . . . . 1 . . . Intercept . | . . . . . . . . . . . . Searches Triggered . | . . . . . . . . . . . . Construction Impeded . | . . . . . . . . . . . . Haulers Reinforced . | . . . . . . . . . . . . Active Scanning Responses . | . . . . . . . . . . . . Cargo Convoy Interrupts . | . . . . . . . . . . . . Stealth | -11 -10 -10 -9 -9 -9 -8 -8 -8 -8 -7 -7 --------- Run | Scr Mat Min Mat Sto Gar Mat Gar Mat Gar Fac Gar Distress Signals 8 | . . . 2 . . 2 . 1 1 . 2 Communications Jammed . | . . . . . . . . . . . . Distress Signals . | . . . . . . . . . . . . Times Spotted 299 | . 17 12 33 . 8 54 26 46 30 46 27 Peak Tracking Total 9 | . 5 3 9 . 5 5 7 4 4 4 6 Tactical Retreats 22 | . . 1 . . . 6 1 1 4 6 3 Traps | -11 -10 -10 -9 -9 -9 -8 -8 -8 -8 -7 -7 ------- Run | Scr Mat Min Mat Sto Gar Mat Gar Mat Gar Fac Gar Traps Triggered 13 | . 1 . 1 1 1 . . 1 5 . 3 Indirectly . | . . . . . . . . . . . . Trap Hack Attempts 38 | . . . . . . . . . 31 7 . Triggered . | . . . . . . . . . . . . Disarmed 2 | . . . . . . . . . . 2 . Reprogrammed 4 | . . . . . . . . . 4 . . Reused . | . . . . . . . . . . . . Traps Extracted . | . . . . . . . . . . . . Installed . | . . . . . . . . . . . . Triggered . | . . . . . . . . . . . . Machines | -11 -10 -10 -9 -9 -9 -8 -8 -8 -8 -7 -7 ---------- Run | Scr Mat Min Mat Sto Gar Mat Gar Mat Gar Fac Gar Machines Disabled 14 | . . . 2 . 1 . 4 . 4 1 2 Max in Single Turn 1 | . . . 1 . 1 . 1 . 1 . 1 Garrison Relay 11 | . . . . . 1 . 4 . 4 . 2 Machines Sabotaged . | . . . . . . . . . . . . Garrisons Compromised . | . . . . . . . . . . . . Overloaded Fab Kills . | . . . . . . . . . . . . Hacking | -11 -10 -10 -9 -9 -9 -8 -8 -8 -8 -7 -7 --------- Run | Scr Mat Min Mat Sto Gar Mat Gar Mat Gar Fac Gar Machines Accessed 38 | . 2 1 8 1 . 8 . 7 . 11 . Terminals 29 | . 2 1 7 . . 6 . 6 . 7 . Fabricators 2 | . . . . . . . . . . 2 . Repair Stations 1 | . . . . . . 1 . . . . . Recycling Units . | . . . . . . . . . . . . Scanalyzers 1 | . . . 1 . . . . . . . . Garrison Access 5 | . . . . 1 . 1 . 1 . 2 . Total Hacks 107 | . 5 4 20 3 . 18 . 18 . 39 . Successful 58 | . 3 2 11 1 . 11 . 11 . 19 . Failed 49 | . 2 2 9 2 . 7 . 7 . 20 . Catastrophic 2 | . . . 1 1 . . . . . . . Database Lockouts . | . . . . . . . . . . . . Manual 85 | . 5 4 12 2 . 15 . 17 . 30 . Terminals 82 | . 5 4 17 . . 13 . 16 . 27 . Fabricators 4 | . . . . . . . . . . 4 . Repair Stations 2 | . . . . . . 2 . . . . . Recycling Units . | . . . . . . . . . . . . Scanalyzers 3 | . . . 3 . . . . . . . . Garrison Access 16 | . . . . 3 . 3 . 2 . 8 . Terminal Hacks 4 | . . . 1 . . . . 1 . 2 . Level Access Points 1 | . . . 1 . . . . . . . . Locate Traps 1 | . . . . . . . . . . 1 . Recall Assault 1 | . . . . . . . . 1 . . . Registered Components 1 | . . . . . . . . . . 1 . Fabricator Hacks 1 | . . . . . . . . . . 1 . Load Schematic 1 | . . . . . . . . . . 1 . Repair Station Hacks 2 | . . . . . . 2 . . . . . Scan Component 1 | . . . . . . 1 . . . . . Repair 1 | . . . . . . 1 . . . . . Recycling Unit Hacks . | . . . . . . . . . . . . Scanalyzer 3 | . . . 3 . . . . . . . . Insert Component 1 | . . . 1 . . . . . . . . Analyze 2 | . . . 2 . . . . . . . . Garrison Access Hacks 5 | . . . . 1 . 1 . 1 . 2 . Unlock Access 5 | . . . . 1 . 1 . 1 . 2 . Unauthorized Hacks 43 | . 3 2 7 . . 8 . 9 . 14 . Terminals 38 | . 3 2 7 . . 7 . 8 . 11 . Track 5 | . . 1 . . . 1 . . . 3 . Assimilate 2 | . . . . . . . . 2 . . . Botnet 26 | . 2 1 6 . . 5 . 5 . 7 . Operators 5 | . 1 . 1 . . 1 . 1 . 1 . Fabricators . | . . . . . . . . . . . . Repair Stations . | . . . . . . . . . . . . Recycling Units . | . . . . . . . . . . . . Scanalyzers . | . . . . . . . . . . . . Garrison Access 5 | . . . . . . 1 . 1 . 3 . Restock 1 | . . . . . . . . . . 1 . Reprogram 4 | . . . . . . 1 . 1 . 2 . Data Cores Recovered 1 | . . . . . . . . 1 . . . Used . | . . . . . . . . . . . . Hacking Detections 29 | . . 1 7 1 . 6 . 5 . 9 . Full Trace Events 7 | . . . 3 1 . . . 2 . 1 . Feedback Events . | . . . . . . . . . . . . Feedback Blocked . | . . . . . . . . . . . . Robot Schematics Acquired . | . . . . . . . . . . . . Robots Built . | . . . . . . . . . . . . Authchips . | . . . . . . . . . . . . Time . | . . . . . . . . . . . . Total Robot Build Rating . | . . . . . . . . . . . . Part Schematics Acquired 1 | . . . 1 . . . . . . . . Parts Built . | . . . . . . . . . . . . Authchips . | . . . . . . . . . . . . Time . | . . . . . . . . . . . . Total Part Build Rating . | . . . . . . . . . . . . Parts Repaired 1 | . . . . . . 1 . . . . . Time 32 | . . . . . . 32 . . . . . Parts Recycled . | . . . . . . . . . . . . Recycled Matter . | . . . . . . . . . . . . Retrieved Matter . | . . . . . . . . . . . . Retrieved Components . | . . . . . . . . . . . . Parts Scanalyzed 1 | . . . 1 . . . . . . . . Part Schematics Acquired 1 | . . . 1 . . . . . . . . Parts Damaged . | . . . . . . . . . . . . Bothacking | -11 -10 -10 -9 -9 -9 -8 -8 -8 -8 -7 -7 ------------ Run | Scr Mat Min Mat Sto Gar Mat Gar Mat Gar Fac Gar Used RIF Installer 3 | . . . . . 1 . 1 . 1 . . Coupler Efficiency 1 | . . . . . . . 1 . . . . Program Shield 1 | . . . . . . . . . 1 . . Robots Hacked 43 | . . . . . . 7 6 12 2 15 1 Non-combat 23 | . . . . . . 5 . 7 1 10 . Combat 20 | . . . . . . 2 6 5 1 5 1 Robot Hacks Applied 58 | . . . . . . 7 6 19 2 23 1 no_distress 1 | . . . . . . 1 . . . . . ignore_repairs 1 | . . . . . . . . 1 . . . map_walls 1 | . . . . . . 1 . . . . . drop_inventory 2 | . . . . . . . . 2 . . . locate_stockpiles 1 | . . . . . . . . . . 1 . ignore_parts 2 | . . . . . . . . . . 2 . purge_threat 11 | . . . . . . . . 5 . 6 . block_reporting 3 | . . . . . . . . . . 3 . mark_security 4 | . . . . . . . . 2 1 1 . relay_feed 1 | . . . . . . . . 1 . . . overload_power 2 | . . . . . . . . . . 2 . reboot_system 1 | . . . . . . . . 1 . . . overwrite_iff 3 | . . . . . . 2 1 . . . . formatsys_low 8 | . . . . . . 3 . 2 . 3 . formatsys_high 17 | . . . . . . . 5 5 1 5 1 Relay Couplers Released 50 | . . . . . 5 . 16 . 15 7 7 Machine Destruction 43 | . . . . . 5 . 16 . 15 . 7 Programmers 7 | . . . . . . . . . . 7 . Attached 25 | . . . . . . 2 3 6 4 9 1 Fabnet Peak Effective % . | . . . . . . . . . . . . Robots Rewired 5 | . . . . . . . . . . . 5 Allies Hacked . | . . . . . . . . . . . . Hacks Repelled 1 | . . . . . . . . . . 1 . Allies | -11 -10 -10 -9 -9 -9 -8 -8 -8 -8 -7 -7 -------- Run | Scr Mat Min Mat Sto Gar Mat Gar Mat Gar Fac Gar Total Allies 40 | . . . . . . 7 6 10 1 10 6 Largest Group 15 | . . . . . . 5 8 15 15 10 12 Highest-Rated Group 258 | . . . . . . 65 104 231 231 237 258 Highest-Rated Ally 54 | . . . . . . 16 16 26 26 54 32 Total Orders 222 | . . . . . . 10 32 49 35 67 29 STAY 107 | . . . . . . 4 17 26 12 35 13 ROAM 2 | . . . . . . . . 1 . . 1 FOLLOW 62 | . . . . . . 1 7 9 18 15 12 AID 23 | . . . . . . 3 2 6 2 8 2 DROP 10 | . . . . . . 2 . 3 1 3 1 PICKUP 14 | . . . . . . . 6 3 . 5 . COLLECT 4 | . . . . . . . . 1 2 1 . Ally Attacks 332 | . . . . . . 19 37 69 65 92 50 Total Damage 6856 | . . . . . . 255 448 836 826 2936 1555 Kills 72 | . . . . . . 3 5 9 16 25 14 Allies Corrupted . | . . . . . . . . . . . . Allies Melted 2 | . . . . . . . . . . 2 . Intel | -11 -10 -10 -9 -9 -9 -8 -8 -8 -8 -7 -7 ------- Run | Scr Mat Min Mat Sto Gar Mat Gar Mat Gar Fac Gar Robot Analysis Total . | . . . . . . . . . . . . Derelict Logs Recovered 1 | . . 1 . . . . . . . . . Drone Launches . | . . . . . . . . . . . . Drone Recoveries . | . . . . . . . . . . . . Exploration | -11 -10 -10 -9 -9 -9 -8 -8 -8 -8 -7 -7 ------------- Run | Scr Mat Min Mat Sto Gar Mat Gar Mat Gar Fac Gar Turns Passed 30437 | 104 604 1164 3310 47 968 5780 3496 5640 2963 5335 1026 Spaces Moved 16038 | 46 230 682 768 20 276 1922 1720 2341 1892 5386 755 Core 18 | 2 . . . . . 4 . . . . 12 Treads 7761 | 44 230 682 768 20 276 1538 1720 2341 142 . . Legs . | . . . . . . . . . . . . Wheels 1492 | . . . . . . 24 . . 1468 . . Hover 356 | . . . . . . 356 . . . . . Flight 6411 | . . . . . . . . . 282 5386 743 Fastest Speed 32 | 50 160 160 160 160 160 115 160 160 32 32 32 Average Speed 114 | 155 160 160 173 160 224 208 160 160 107 34 48 Slowest Speed 850 | 160 160 160 240 160 320 850 160 160 385 37 200 Overloaded Moves . | . . . . . . . . . . . . Propulsion Burnouts . | . . . . . . . . . . . . Robots Hopped 37 | . . . . . . . . . . 35 2 Cave-ins Triggered . | . . . . . . . . . . . . Exploration Rate (%) 54 | 3 49 98 58 8 38 84 73 78 85 32 50 Regions Visited 11 Branch Regions 2 Pre-discovered Areas 1 | . . 1 . . . . . . . . . Known Exits Taken 4 | . . . . 1 . 1 . 1 . 1 . Unknown Exits Taken 4 | 1 1 1 1 . . . . . . . . Scrap Searched 1 | . . 1 . . . . . . . . . Spaces Dug 7 | . . . . . . . . . . 6 1 Terrain Destroyed 36 | . . . 16 . . 2 . . 3 6 9 Melee 7 | . . . . . . . . . . 6 1 Projectile 6 | . . . 4 . . 2 . . . . . AOE 23 | . . . 12 . . . . . 3 . 8 Terrain Rammed . | . . . . . . . . . . . . Walls Destroyed . | . . . . . . . . . . . . Machines Disabled . | . . . . . . . . . . . . Actions | -11 -10 -10 -9 -9 -9 -8 -8 -8 -8 -7 -7 --------- Run | Scr Mat Min Mat Sto Gar Mat Gar Mat Gar Fac Gar Total 27343 | 61 369 725 2639 35 557 3517 2411 4124 2789 8775 1341 Wait 10039 | . 62 12 1763 15 224 1363 579 1618 653 3301 449 Move 15954 | 45 229 681 767 19 274 1921 1718 2340 1890 5319 751 Hop 33 | . . . . . . . . . . 31 2 Pick Up 141 | 1 15 3 8 . 6 16 18 12 50 9 3 Fast Attach 74 | 7 2 1 5 1 1 14 2 8 10 10 13 Attach 38 | . . . 8 . 2 7 3 4 5 8 1 Detach 4 | . . . 1 . . 2 . . 1 . . Swap 73 | . 3 3 9 . 3 14 11 18 4 4 4 Drop 187 | . 4 6 15 . 3 30 18 20 64 17 10 Fire 451 | 8 54 19 61 . 29 106 49 71 37 8 9 Melee 182 | . . . 1 . 13 43 7 22 4 53 39 Ram . | . . . . . . . . . . . . Kick . | . . . . . . . . . . . . Crush 2 | . . . 1 . . . . 1 . . . Escape Stasis 82 | . . . . . 2 . 4 . 40 . 36 Rewire 45 | . . . . . . 1 2 10 . 8 24 Trap 38 | . . . . . . . . . 31 7 . Miscellaneous . | . . . . . . . . . . . . Route ------- -11/Scrapyard -10/Materials -10/Mines (discovered 3 exits: *Mat x2 / [*Exi]) -9/Materials (discovered 5 exits: *Mat x3 / [*Min] / *Sto) -9/Storage -9/Garrison -8/Materials (discovered 3 exits: *Fac x2 / Gar) -8/Garrison (discovered 3 exits: *Mat x3) -8/Materials (discovered 3 exits: *Fac x2 / Gar) -8/Garrison (discovered 3 exits: *Fac x3) -7/Factory (discovered 4 exits: *Fac / *Low / Gar / Gar) -7/Garrison History --------- Turn | Location | Event 9 | -11/Scrapyard | Discovered new exit (range 13) 105 | -11/Scrapyard | Entered Materials 300 | -10/Materials | Build established: Mutant 348 | -10/Materials | Discovered new exit (range 13) 709 | -10/Materials | Entered Mines 1178 | -10/Mines | Discovered new exit (range 3) 1242 | -10/Mines | Discovered new exit (range 13) 1507 | -10/Mines | Deemed a non-threat by the Exiles lab entrance 1507 | -10/Mines | Discovered new exit (range 5) 1873 | -10/Mines | Entered Materials 1873 | -9/Materials | Evolved 2 slots: Utility x2 2123 | -9/Materials | Lost 4 parts (1p1n2u) 2798 | -9/Materials | Discovered new exit (range 14) 3542 | -9/Materials | Identified exit to Materials 4439 | -9/Materials | Discovered new exit (range 10) 5183 | -9/Materials | Entered Storage 5211 | -9/Storage | Identified exit to Garrison 5230 | -9/Storage | Entered Garrison 5292 | -9/Garrison | Triggered checkpoint 5722 | -9/Garrison | Discovered exit to Materials (range 11) 5763 | -9/Garrison | Installed Relay Interface Framework 5903 | -9/Garrison | Build established: Scavenger-Mutant 5936 | -9/Garrison | Triggered checkpoint 6071 | -9/Garrison | Garrison Relay disabled 6198 | -9/Garrison | Entered Materials 6198 | -8/Materials | Evolved 2 slots: Utility x2 6402 | -8/Materials | Build established: Bothacker-Mutant 9713 | -8/Materials | Repaired Rnf. Ion Engine 9837 | -8/Materials | Discovered new exit (range 16) 10591 | -8/Materials | Discovered new exit (range 13) 10782 | -8/Materials | Identified exit to Garrison 11978 | -8/Materials | Entered Garrison 11978 | -8/Garrison | Accompanied by 5 allies 12158 | -8/Garrison | Discovered new exit (range 13) 12333 | -8/Garrison | Discovered new exit (range 13) 12505 | -8/Garrison | Discovered new exit (range 10) 12534 | -8/Garrison | Expanded RIF knowledge: Coupler Efficiency 12602 | -8/Garrison | Triggered checkpoint 12659 | -8/Garrison | Garrison Relay disabled 12778 | -8/Garrison | Triggered checkpoint 12886 | -8/Garrison | Triggered checkpoint 13486 | -8/Garrison | Triggered checkpoint 13683 | -8/Garrison | Garrison Relay disabled 14134 | -8/Garrison | Triggered checkpoint 14217 | -8/Garrison | Garrison Relay disabled 14746 | -8/Garrison | Triggered checkpoint 14766 | -8/Garrison | Garrison Relay disabled 15474 | -8/Garrison | Entered Materials 15474 | -8/Materials | Accompanied by 8 allies 16645 | -8/Materials | Discovered new exit (range 8) 16714 | -8/Materials | Core integrity fell below 50% 16999 | -8/Materials | Build established: Commander-Mutant 17328 | -8/Materials | Identified exit to Garrison 17337 | -8/Materials | Garrison activated, responded to threat 18443 | -8/Materials | Discovered new exit (range 10) 19474 | -8/Materials | First assault squad dispatched 21114 | -8/Materials | Entered Garrison 21114 | -8/Garrison | Accompanied by 15 allies 21126 | -8/Garrison | Expanded RIF knowledge: Program Shield 21228 | -8/Garrison | Triggered checkpoint 21257 | -8/Garrison | Garrison Relay disabled 21474 | -8/Garrison | Triggered checkpoint 21474 | -8/Garrison | Triggered checkpoint 21782 | -8/Garrison | Build established: Bothacker-Mutant 21821 | -8/Garrison | Discovered new exit (range 12) 21834 | -8/Garrison | Triggered checkpoint 21943 | -8/Garrison | Garrison Relay disabled 22036 | -8/Garrison | Triggered checkpoint 22150 | -8/Garrison | Triggered checkpoint 22157 | -8/Garrison | Core integrity fell below 20% 22225 | -8/Garrison | Garrison Relay disabled 22328 | -8/Garrison | Triggered checkpoint 22579 | -8/Garrison | Garrison Relay disabled 22588 | -8/Garrison | Triggered checkpoint 22616 | -8/Garrison | Discovered new exit (range 14) 22764 | -8/Garrison | Discovered new exit (range 9) 23936 | -8/Garrison | Identified exit to Factory 24077 | -8/Garrison | Entered Factory 24077 | -7/Factory | Accompanied by 9 allies 24077 | -7/Factory | Evolved 2 slots: Utility x2 24135 | -7/Factory | Identified exit to Garrison 24277 | -7/Factory | Build established: Bothacker-Sprinter 24712 | -7/Factory | Build established: Commander-Mutant 24976 | -7/Factory | Discovered new exit (range 4) 24977 | -7/Factory | Identified exit to Lower Caves 25062 | -7/Factory | Build established: Bothacker-Mutant 25189 | -7/Factory | Discovered new exit (range 4) 25190 | -7/Factory | Identified exit to Factory 25791 | -7/Factory | Build established: Bothacker-Sprinter 26929 | -7/Factory | Identified exit to Garrison 27684 | -7/Factory | Build established: Bothacker-Mutant 29412 | -7/Factory | Entered Garrison 29412 | -7/Garrison | Accompanied by 8 allies 29456 | -7/Garrison | Triggered checkpoint 29493 | -7/Garrison | Garrison Relay disabled 29612 | -7/Garrison | Triggered checkpoint 29617 | -7/Garrison | Garrison Relay disabled 29756 | -7/Garrison | Build established: Commander-Mutant 29974 | -7/Garrison | Triggered checkpoint 29984 | -7/Garrison | Triggered checkpoint 30006 | -7/Garrison | Triggered checkpoint 30008 | -7/Garrison | Triggered checkpoint 30083 | -7/Garrison | Core integrity fell below 50% 30123 | -7/Garrison | Lost 3 parts (2n1u) 30398 | -7/Garrison | Core integrity fell below 20% 30438 | -7/Garrison | Destroyed by S-27 Virus with Autogun Last Messages --------------- 30338_ Field strength at 50. 30339_ Field strength at 45. 30340_ Field strength at 40. 30341_ Field strength at 35. 30342_ Field strength at 30. 30343_ Field strength at 25. 30344_ Field strength at 20. 30345_ Field strength at 15. 30346_ Field strength at 10. 30347_ Field strength at 5. 30348_ Stasis field depleted. 30384_ Imp. Signal Interpreter destroyed. 30385_ S-27 Virus destroyed. 30396_ Destroyed VTOL Module. 30398_ Great Axe destroyed. 30405_ Chain reaction triggered in Lgt. Nuclear Core. 30405_ S-27 Virus destroyed. 30407_ Acquired 10 matter. 30419_ System corrupted: Heat flow error (+180). 30428_ Acquired Autogun. Map ----- +----------------------------------------------------+ | ?????????????????????????????????????????????????? | | ?????????????????????????????????????????????????? | | ?????????????????????????????????????????????????? | | ?????????????????????????????????????????????????? | | ?????????????????????????????????????????????????? | | ?????????????????????????????????????????????????? | | ?????????????????????????????????????????????????? | | ?????????????????????????????????????????????????? | | ?????####????????????????????????????????????????? | | ?????# ????????????????????????????????????????? | | ?????# ????????????????????????????????????????? | | ?????# #????????????????????????????????????????? | | ?????# #????????????????????????????????????????? | | ?????# #????????????????????????????????????????? | | ###### #####################????????????????????? | | #????????????????????? | | #????????????????????? | | ^ #??????? #?????????? | | #######"#"###########+### #??????# #?????????? | | ??????# ###?????????# #?# ^#??????#% ^#?????????? | | ??????# #???????????# #?# #??????# #?????????? | | ??????# #???????????# #?# #??????# #?????????? | | ??????# ############# #?# ######## #?????????? | | ??????# =#?# ## ## #?????????? | | ??????############### ### ## ## #?????????? | | ???????????????????#" ""#@ !%* #?????????? | | ???????????????????#"*% s% #?????????? | | ???????????????????##;;;# #?????????? | | ????????????????????### # ## ## #?????????? | | ??????????????????????### ## ## ###???????? | | ??????????????????????# /% %![% #???????? | | ??????????????????????# %!* ! [ #???????? | | ??????????????????????# [=% %! %/= #?#?????? | | ??????????????????????# =%[ !%*% #? ?????? | | ??????????????????????### ## *##=% #### #????? | | ???????????????????###### ## !%##[%[#??# #????? | | ??????????????? [ [=%!#??# #???## | | ??????????????? * =!%[#??# #???# | | ??????????????????####### !!* !%= #??# #???# | | ????????????????????????##!%## *%##[!##??# #???# | | ?????????????????????????#!!## ##=%#???# #???# | | ?????????????????????????# ########%*#???# #???# | | ?????????????????????????# ????# ##!%##### ##### | | ?????????????????????????# ????# %+= # | | ?????????????????????????# ????#### ##### ###### | | ?????????????????????????# ??????## ###?# #????? | | ??????????????????????????????????## # ###"##???? | | ??????????????????????????????????# * =#???? | | ?????????????????????????????????## ##### | | ?????????????????????????????????## #### [ *% | +----------------------------------------------------+ Best States ------------- Heat Dissipation 45 Energy Generation 15 Energy Capacity 265 Matter Stores 300 Matter Capacity 300 Sight Range 16 Robot Scan Range 15 Terrain Scan Density 10 Armor Coverage 450 Evasion (%) 63 Targeting Accuracy 16 Recoil Reduction 2 Offensive Hacking 20 Defensive Hacking 20 Relay Coupler Types 4 Relay Coupler Value 134 Item Schematics ----------------- Hacking Suite | -9/Materials | Scanalyzed Robot Schematics ------------------ None Fabricated ------------ Nothing Alien Tech Used ----------------- None Achievements -------------- None Challenges ------------ None Game ------ Seed NetworkRocketInverter Manual? 0 Play Time 02:58:02 Cumulative 321.7 hours Start 2022.06.10 @ 17:58:37 End 2022.06.10 @ 22:53:31 Sessions 1 Manual Loads 0 Difficulty Rogue Special Mode None Game No. 558 Rogue 403 Adventurer 148 Explorer 7 Win Type - Total 11 Types 9/0/1/1/0/0/0/0/0 Lore% 74 Gallery% 87 Achievement% 67 Wizard Run 0 Options --------- ASCII 0 Keyboard 0 Movement Numpad Keybinds 0 Fullscreen 1 Font 18/SmallcapsGlow Map View 76x50 Tactical HUD 1 Map Filters NONE Filters NONE Steam 1 RUN: 618e061e-94ab-4b18-8d1f-87c20a235464